fUSD/lending_fUSD_20250614
["ID","MTS","AMOUNT","RATE_DAILY","PERIOD"]
[365760974,1749886238837,-10290.0,0.00017,2]
[365760977,1749886238853,-685.7610509,0.00017,2]
[365760981,1749886238881,-3206.65230829,0.00017,2]
[365761296,1749886241993,-497.72946,0.00017,2]
[365761299,1749886242020,-10625.43501985,0.00017,2]
[365761302,1749886242037,-50658.05184292,0.00017,2]
[365761306,1749886242062,-913.303,0.00017,2]
[365761312,1749886242115,-1574.1,0.00017,2]
[365761315,1749886242135,-405.89734009,0.00017,2]
[365761438,1749886243301,-627.4,0.0001699,3]
[365761440,1749886243311,-4783.96844438,0.00017,2]
[365761456,1749886243458,-2767.40000004,0.00017,2]
[365761459,1749886243470,-1007.0,0.00017,2]
[365761468,1749886243550,-1000.0,0.00017,2]
[365761470,1749886243562,-560.71560812,0.00017,2]
[365761642,1749886246313,-1341.82488687,0.00017,2]
[365761643,1749886246401,-963201.72328893,0.00017,2]
[365761644,1749886246411,-302.97,0.0001703,2]
[365761645,1749886246421,-302.85,0.0001703,2]
[365761646,1749886246430,-300.0,0.0001715,2]
[365761647,1749886246439,-300.0,0.00017179,2]
[365761648,1749886246449,-5757.63514257,0.0001718,2]
[365761649,1749886246458,-19301.83463362,0.00017257,2]
[365761650,1749886246468,-151.0,0.0001729,2]
[365761651,1749886246484,-152.62413712,0.0001729,2]
[365761652,1749886246494,-1957.856,0.0001729,2]
[365761653,1749886246504,-207.4,0.0001729,2]
[365761654,1749886246513,-1164.33,0.000173,2]
[365761655,1749886246522,-774.02,0.000173,2]
[365761656,1749886246532,-341.52,0.000173,2]
[365761657,1749886246541,-2327.56,0.000173,2]
[365761658,1749886246550,-200.0,0.00017409,3]
[365761659,1749886246560,-150.0,0.00017428,2]
[365761660,1749886246570,-150.0,0.00017435,2]
[365761661,1749886246579,-150.0,0.00017437,2]
[365761662,1749886246589,-150.0,0.00017441,2]
[365761663,1749886246598,-150.0,0.00017443,2]
[365761664,1749886246610,-150.0,0.00017443,2]
[365761665,1749886246619,-150.0,0.00017446,2]
[365761666,1749886246628,-150.0,0.00017446,2]
[365761667,1749886246638,-150.0,0.0001745,2]
[365761668,1749886246647,-150.0,0.00017452,2]
[365761670,1749886246660,-150.0,0.00017452,2]
[365761672,1749886246669,-150.0,0.00017453,2]
[365761674,1749886246678,-150.0,0.00017454,2]
[365761676,1749886246689,-150.0,0.00017454,2]
[365761678,1749886246698,-150.0,0.00017463,2]
[365761680,1749886246707,-150.0,0.00017466,2]
[365761682,1749886246716,-150.0,0.00017468,2]
[365761684,1749886246726,-150.0,0.0001747,2]
[365761686,1749886246737,-150.0,0.0001747,2]
[365761688,1749886246747,-150.0,0.00017471,2]
[365761690,1749886246756,-150.0,0.00017472,2]
[365761692,1749886246766,-150.0,0.00017479,2]
[365761694,1749886246775,-150.0,0.00017479,2]
[365761696,1749886246784,-150.0,0.00017479,2]
[365761698,1749886246793,-150.0,0.0001748,2]
[365761700,1749886246803,-150.0,0.00017481,2]
[365761702,1749886246812,-247.61,0.00017487,2]
[365761704,1749886246822,-246.36,0.00017487,2]
[365761706,1749886246831,-254.92,0.00017487,2]
[365761708,1749886246840,-249.92,0.00017487,2]
[365761710,1749886246849,-253.67,0.00017487,2]
[365761712,1749886246858,-252.13,0.00017487,2]
[365761714,1749886246867,-249.71,0.00017487,2]
[365761716,1749886246877,-254.05,0.00017487,2]
[365761717,1749886246886,-249.27,0.00017487,2]
[365761719,1749886246895,-251.3,0.00017487,2]
[365761721,1749886246904,-249.46,0.00017487,2]
[365761723,1749886246913,-150.0,0.00017489,2]
[365761725,1749886246923,-150.0,0.00017491,2]
[365761726,1749886246933,-150.0,0.00017493,2]
[365761727,1749886246944,-150.0,0.00017493,2]
[365761728,1749886246953,-150.0,0.00017495,2]
[365761729,1749886246963,-150.0,0.00017497,2]
[365761730,1749886246972,-150.0,0.00017506,2]
[365761731,1749886246982,-150.0,0.00017507,2]
[365761732,1749886246991,-150.0,0.00017512,2]
[365761733,1749886247001,-150.0,0.00017514,2]
[365761734,1749886247010,-150.0,0.00017516,2]
[365761735,1749886247020,-150.0,0.00017519,2]
[365761736,1749886247029,-896.80285728,0.00017521,2]
[365761737,1749886247039,-150.0,0.00017521,2]
[365761738,1749886247048,-150.0,0.00017523,2]
[365761739,1749886247058,-150.0,0.00017528,2]
[365761740,1749886247068,-150.0,0.00017531,2]
[365761741,1749886247078,-150.0,0.00017532,2]
[365761742,1749886247088,-150.0,0.00017532,2]
[365761743,1749886247097,-150.0,0.00017534,2]
[365761744,1749886247107,-150.0,0.00017536,2]
[365761745,1749886247116,-150.0,0.00017542,2]
[365761746,1749886247126,-150.0,0.00017548,2]
[365761747,1749886247136,-150.0,0.00017549,2]
[365761748,1749886247145,-150.0,0.00017555,2]
[365761749,1749886247154,-150.0,0.00017556,2]
[365761750,1749886247164,-500.0,0.00017558,2]
[365761751,1749886247173,-200.0,0.00017558,2]
[365761752,1749886247183,-150.0,0.00017563,2]
[365761753,1749886247192,-150.0,0.00017564,2]
[365761754,1749886247201,-150.0,0.00017567,2]
[365761755,1749886247211,-150.0,0.00017567,2]
[365761756,1749886247220,-150.0,0.00017571,2]
[365761757,1749886247229,-150.0,0.00017574,2]
[365761758,1749886247239,-150.0,0.00017575,2]
[365761759,1749886247248,-150.0,0.00017577,2]
[365761760,1749886247268,-150.3,0.00017578,2]
[365761761,1749886247277,-150.0,0.00017582,2]
[365761762,1749886247288,-150.0,0.00017583,2]
[365761763,1749886247298,-150.0,0.00017585,2]
[365761764,1749886247307,-150.3,0.00017587,2]
[365761765,1749886247317,-150.0,0.00017587,2]
[365761766,1749886247326,-547.98701072,0.00017588,2]
[365761767,1749886247335,-173.90467242,0.00017588,2]
[365761768,1749886247345,-5245.32201084,0.00017588,2]
[365761769,1749886247354,-9599.46311709,0.00017588,2]
[365761770,1749886247364,-150.0,0.0001759,2]
[365761771,1749886247374,-150.0,0.00017592,2]
[365761772,1749886247383,-150.0,0.00017596,2]
[365761773,1749886247393,-150.0,0.00017596,2]
[365761774,1749886247402,-16978.2787,0.00017597,2]
[365761775,1749886247411,-28250.2906,0.00017597,2]
[365761776,1749886247422,-1656.2367,0.00017597,2]
[365761777,1749886247434,-150.0,0.00017598,2]
[365761778,1749886247443,-2376.4988,0.00017599,2]
[365761779,1749886247454,-33443.0,0.000176,2]
[365761780,1749886247463,-426.24310189,0.000176,2]
[365761781,1749886247473,-150.0,0.00017602,2]
[365761782,1749886247482,-150.0,0.00017607,2]
[365761783,1749886247492,-150.0,0.00017609,2]
[365761784,1749886247502,-150.0,0.00017611,2]
[365761785,1749886247512,-150.0,0.00017613,2]
[365761786,1749886247522,-150.0,0.0001762,2]
[365761787,1749886247532,-150.0,0.00017623,2]
[365761788,1749886247542,-150.0,0.00017625,2]
[365761789,1749886247551,-150.0,0.00017632,2]
[365761790,1749886247560,-150.0,0.00017634,2]
[365761791,1749886247570,-150.0,0.00017637,2]
[365761792,1749886247580,-150.0,0.00017637,2]
[365761793,1749886247590,-739.845,0.00017638,2]
[365761794,1749886247600,-150.0,0.00017638,2]
[365761795,1749886247610,-150.0,0.00017641,2]
[365761796,1749886247620,-162.74938912,0.00017642,2]
[365761797,1749886247631,-150.0,0.00017643,2]
[365761798,1749886247641,-150.0,0.00017649,2]
[365761799,1749886247651,-150.0,0.00017656,2]
[365761800,1749886247664,-150.0,0.00017656,2]
[365761801,1749886247674,-150.0,0.00017657,2]
[365761802,1749886247683,-150.0,0.00017662,2]
[365761803,1749886247693,-150.0,0.00017662,2]
[365761804,1749886247703,-150.0,0.00017667,2]
[365761805,1749886247714,-558.0,0.00017668,2]
[365761806,1749886247723,-607.461,0.00017668,2]
[365761807,1749886247735,-1160.0,0.00017668,2]
[365761808,1749886247746,-155.0,0.00017668,2]
[365761809,1749886247755,-417.051,0.00017668,2]
[365761810,1749886247764,-896.568,0.00017668,2]
[365761811,1749886247774,-858.249,0.00017668,2]
[365761812,1749886247784,-500.0,0.00017673,2]
[365761813,1749886247795,-372.48942682,0.00017673,2]
[365761814,1749886247806,-540.40463065,0.00017673,2]
[365761815,1749886247821,-500.88880114,0.00017673,2]
[365761816,1749886247835,-500.0,0.00017673,2]
[365761817,1749886247845,-500.0,0.00017673,2]
[365761818,1749886247854,-500.0,0.00017673,2]
[365761819,1749886247864,-500.0,0.00017673,2]
[365761820,1749886247874,-500.0,0.00017673,2]
[365761821,1749886247884,-500.0,0.00017673,2]
[365761822,1749886247893,-289.51963588,0.00017673,2]
[365761823,1749886247904,-500.0,0.00017673,2]
[365761824,1749886247913,-500.0,0.00017673,2]
[365761825,1749886247923,-500.0,0.00017673,2]
[365761826,1749886247932,-500.0,0.00017673,2]
[365761827,1749886247942,-500.0,0.00017673,2]
[365761828,1749886247952,-500.0,0.00017673,2]
[365761829,1749886247961,-150.0,0.00017674,2]
[365761830,1749886247970,-150.0,0.00017675,2]
[365761831,1749886247980,-150.3,0.00017678,2]
[365761832,1749886247990,-150.3,0.00017678,2]
[365761833,1749886248000,-150.3,0.00017678,2]
[365761834,1749886248010,-150.3,0.00017678,2]
[365761835,1749886248020,-150.3,0.00017678,2]
[365761836,1749886248030,-150.0,0.00017679,2]
[365761837,1749886248040,-150.0,0.0001768,2]
[365761838,1749886248049,-150.3,0.0001768,2]
[365761839,1749886248059,-150.0,0.00017681,2]
[365761840,1749886248068,-150.3,0.00017685,2]
[365761841,1749886248078,-150.3,0.00017685,2]
[365761842,1749886248087,-150.3,0.00017685,2]
[365761843,1749886248097,-150.3,0.00017685,2]
[365761844,1749886248106,-150.3,0.00017685,2]
[365761845,1749886248115,-150.3,0.00017685,2]
[365761846,1749886248125,-150.3,0.00017685,2]
[365761847,1749886248135,-150.3,0.00017685,2]
[365761848,1749886248144,-150.3,0.00017685,2]
[365761849,1749886248154,-150.3,0.00017685,2]
[365761850,1749886248163,-150.3,0.00017685,2]
[365761851,1749886248173,-150.3,0.00017685,2]
[365761852,1749886248182,-150.3,0.00017685,2]
[365761853,1749886248193,-150.3,0.00017685,2]
[365761854,1749886248202,-150.3,0.00017687,2]
[365761855,1749886248212,-150.0,0.00017687,2]
[365761856,1749886248221,-300.0,0.00017687,2]
[365761857,1749886248231,-151.0,0.00017688,2]
[365761858,1749886248240,-235.550682,0.00017688,2]
[365761859,1749886248251,-235.550682,0.00017688,2]
[365761860,1749886248267,-11681.8634262,0.00017688,2]
[365761861,1749886248276,-231.134546,0.00017688,2]
[365761862,1749886248286,-231.134546,0.00017688,2]
[365761863,1749886248296,-169.417238,0.00017688,2]
[365761864,1749886248306,-169.417238,0.00017688,2]
[365761865,1749886248316,-169.417238,0.00017688,2]
[365761866,1749886248326,-169.417238,0.00017688,2]
[365761867,1749886248336,-151.0,0.00017688,2]
[365761868,1749886248346,-259.625753,0.00017688,2]
[365761869,1749886248355,-169.417238,0.00017688,2]
[365761870,1749886248365,-169.417238,0.00017688,2]
[365761871,1749886248375,-169.417238,0.00017688,2]
[365761872,1749886248385,-169.417238,0.00017688,2]
[365761873,1749886248394,-50208.5609999,0.00017688,2]
[365761874,1749886248404,-151.0,0.00017688,2]
[365761875,1749886248414,-151.0,0.00017688,2]
[365761876,1749886248423,-151.0,0.00017688,2]
[365761877,1749886248433,-151.0,0.00017688,2]
[365761878,1749886248443,-372.631201,0.00017688,2]
[365761879,1749886248453,-372.631201,0.00017688,2]
[365761880,1749886248463,-372.631201,0.00017688,2]
[365761881,1749886248473,-372.631201,0.00017688,2]
[365761882,1749886248482,-372.631201,0.00017688,2]
[365761883,1749886248492,-372.631201,0.00017688,2]
[365761884,1749886248502,-372.631201,0.00017688,2]
[365761885,1749886248515,-372.631201,0.00017688,2]
[365761886,1749886248525,-151.0,0.00017688,2]
[365761887,1749886248535,-151.0,0.00017688,2]
[365761888,1749886248545,-236.91339,0.00017688,2]
[365761889,1749886248555,-151.0,0.00017688,2]
[365761890,1749886248564,-151.0,0.00017688,2]
[365761891,1749886248574,-236.91339,0.00017688,2]
[365761892,1749886248584,-50208.5609999,0.00017688,2]
[365761893,1749886248594,-151.0,0.00017688,2]
[365761894,1749886248603,-151.0,0.00017688,2]
[365761895,1749886248613,-151.0,0.00017688,2]
[365761896,1749886248622,-31674.9612698,0.00017688,2]
[365761897,1749886248633,-413.540456,0.00017688,2]
[365761898,1749886248643,-413.540456,0.00017688,2]
[365761899,1749886248653,-56944.4498333,0.00017688,2]
[365761900,1749886248665,-166.244286,0.00017688,2]
[365761901,1749886248675,-166.244286,0.00017688,2]
[365761902,1749886248685,-166.244286,0.00017688,2]
[365761903,1749886248695,-166.244286,0.00017688,2]
[365761904,1749886248705,-56944.4498333,0.00017688,2]
[365761905,1749886248715,-151.0,0.00017688,2]
[365761906,1749886248724,-218.643505,0.00017688,2]
[365761907,1749886248736,-218.643505,0.00017688,2]
[365761908,1749886248746,-218.643505,0.00017688,2]
[365761909,1749886248756,-218.643505,0.00017688,2]
[365761910,1749886248765,-151.0,0.00017688,2]
[365761911,1749886248775,-56944.4498333,0.00017688,2]
[365761912,1749886248784,-151.0,0.00017688,2]
[365761913,1749886248794,-151.0,0.00017688,2]
[365761914,1749886248803,-150.0,0.0001769,2]
[365761915,1749886248813,-151.0,0.0001769,2]
[365761916,1749886248822,-151.0,0.0001769,2]
[365761917,1749886248832,-151.0,0.0001769,2]
[365761918,1749886248841,-218.643505,0.0001769,2]
[365761919,1749886248851,-218.643505,0.0001769,2]
[365761920,1749886248860,-151.0,0.0001769,2]
[365761921,1749886248870,-47971.14145567,0.0001769,2]
[365761922,1749886248880,-150.0,0.00017692,2]
[365761923,1749886248890,-150.0,0.00017693,2]
[365761924,1749886248899,-150.0,0.00017695,2]
[365761925,1749886248909,-114348.70036168,0.00017695,2]
[365761926,1749886248924,-777.08908473,0.00017695,2]
[365761930,1749886327036,2144.02085782,0.000161,2]
[365761931,1749886332505,200.0,0.00015316,2]
[365761932,1749886362612,164.9,0.0002,30]
[365761933,1749886380801,152.39864101,0.00019014,30]
[365761934,1749886380913,152.39864101,0.00019205,30]
[365761935,1749886381034,152.39864101,0.00019425,30]
[365761936,1749886381138,152.39864101,0.00019616,30]
[365761937,1749886381251,152.39864101,0.00019836,30]
[365761941,1749886469642,1000.0,0.0002465,120]
[365761942,1749886510719,152.39864102,0.00019425,30]
[365761943,1749886594805,-1000.0,0.00019,12]
[365761944,1749886629792,-1500.0,0.00019,12]
[365761945,1749886692273,200.0,0.00015462,2]
[365761946,1749886727333,312.77,0.00016061,2]
[365761947,1749886746023,11980.95,0.00016095,2]
[365761949,1749886862176,1000.0,0.00016088,2]
[365761952,1749887052743,200.0,0.00015634,2]
[365761953,1749887106553,494.59,0.00014222,2]
[365761967,1749887316933,476.21,0.00016088,2]
[365761975,1749887412715,200.0,0.00015833,2]
[365761977,1749887431516,-362.561,0.00016113,2]
[365761978,1749887431553,-177.049,0.00016113,2]
[365761979,1749887431564,-250.0,0.00016118,2]
[365761980,1749887431574,-494.59,0.00016486,2]
[365761981,1749887431583,-250.0,0.00016573,2]
[365761982,1749887431592,-874.34202143,0.00016574,2]
[365761983,1749887431602,-174.63835223,0.00016574,2]
[365761984,1749887431611,-200.0,0.0001667,2]
[365761985,1749887431620,-181.25,0.00016674,2]
[365761986,1749887431629,-181.25,0.00016678,2]
[365761987,1749887431638,-181.25,0.00016683,2]
[365761988,1749887431647,-533.83,0.00016686,2]
[365761989,1749887431656,-181.25,0.00016687,2]
[365761990,1749887431666,-181.25,0.00016691,2]
[365761991,1749887431675,-181.25,0.00016696,2]
[365761992,1749887431685,-181.25,0.000167,2]
[365761993,1749887431694,-163.59,0.00016701,2]
[365761994,1749887431704,-181.25,0.00016705,2]
[365761995,1749887431714,-181.25,0.00016709,2]
[365762021,1749887432052,-181.25,0.00016713,2]
[365762024,1749887432062,-181.25,0.00016718,2]
[365762026,1749887432072,-181.25,0.00016722,2]
[365762028,1749887432081,-181.25,0.00016727,2]
[365762031,1749887432090,-181.25,0.00016731,2]
[365762034,1749887432099,-181.25,0.00016735,2]
[365762037,1749887432108,-181.25,0.0001674,2]
[365762040,1749887432117,-200.0,0.0001674,2]
[365762042,1749887432126,-1200.0,0.0001674,2]
[365762046,1749887432136,-300.0,0.00016743,2]
[365762048,1749887432145,-181.25,0.00016744,2]
[365762051,1749887432158,-181.25,0.00016748,2]
[365762053,1749887432167,-181.25,0.00016753,2]
[365762055,1749887432177,-181.25,0.00016757,2]
[365762057,1749887432186,-1957.856,0.00016814,2]
[365762059,1749887432195,-151.0,0.00016814,2]
[365762062,1749887432207,-447.04644017,0.00016814,2]
[365762064,1749887432216,-200.02597362,0.00016814,2]
[365762065,1749887432225,-207.4,0.00016814,2]
[365762067,1749887432237,-500.0,0.00016814,2]
[365762069,1749887432248,-201.38304379,0.00016869,2]
[365762070,1749887432256,-1038.76927148,0.00016899,2]
[365762071,1749887432265,-49137.514,0.000169,2]
[365762072,1749887432275,-179.93,0.00016999,2]
[365762073,1749887432284,-7801.11759348,0.00017,2]
[365762074,1749887432293,-200.0,0.0001706,3]
[365762075,1749887432302,-500.0,0.00017557,2]
[365762076,1749887432311,-152.0,0.00017562,2]
[365762077,1749887432320,-5191.01315468,0.0001759,2]
[365762167,1749887433212,-928.663573,0.0001759,2]
[365762170,1749887433224,-1681.44086551,0.0001759,2]
[365762172,1749887433233,-10454.99688781,0.00017595,2]
[365762174,1749887433243,-4838.34835707,0.00017595,2]
[365762176,1749887433253,-162.9330672,0.00017595,2]
[365762178,1749887433261,-234.06262509,0.00017595,2]
[365762180,1749887433271,-547.98701072,0.00017595,2]
[365762182,1749887433280,-156.51420516,0.00017595,2]
[365762184,1749887433289,-5000.0,0.00017597,2]
[365762185,1749887433298,-162.74938912,0.00017597,2]
[365762187,1749887433308,-162.93306719,0.00017598,2]
[365762189,1749887433317,-340.99448152,0.000176,2]
[365762191,1749887433326,-162.93306719,0.000176,2]
[365762193,1749887433335,-251.05753186,0.00017636,2]
[365762196,1749887433344,-387.55176595,0.00017636,2]
[365762197,1749887433354,-3330.0,0.00017637,2]
[365762199,1749887433363,-945.0,0.00017637,2]
[365762201,1749887433372,-636.377,0.00017637,2]
[365762203,1749887433382,-802.0,0.00017637,2]
[365762205,1749887433391,-1160.0,0.00017637,2]
[365762207,1749887433400,-590.0,0.00017637,2]
[365762209,1749887433409,-1275.0,0.00017637,2]
[365762212,1749887433419,-2001.0,0.00017637,2]
[365762214,1749887433428,-927.0,0.00017637,2]
[365762216,1749887433437,-558.0,0.00017637,2]
[365762218,1749887433446,-1256.0,0.00017637,2]
[365762220,1749887433456,-3176.423,0.00017637,2]
[365762222,1749887433465,-155.0,0.00017637,2]
[365762224,1749887433474,-160.86330742,0.00017641,2]
[365762225,1749887433484,-1003.341,0.00017641,2]
[365762228,1749887433493,-568.53992238,0.00017673,2]
[365762230,1749887433504,-501.90499534,0.00017673,2]
[365762231,1749887433514,-500.0,0.00017673,2]
[365762233,1749887433523,-518.4311353,0.00017673,2]
[365762236,1749887433533,-500.0,0.00017673,2]
[365762237,1749887433543,-504.5961517,0.00017673,2]
[365762239,1749887433553,-500.0,0.00017673,2]
[365762241,1749887433562,-151.57630498,0.00017677,2]
[365762243,1749887433572,-151.0,0.00017688,2]
[365762245,1749887433581,-151.0,0.00017688,2]
[365762248,1749887433590,-151.0,0.00017688,2]
[365762250,1749887433600,-151.0,0.00017688,2]
[365762251,1749887433609,-151.0,0.00017688,2]
[365762253,1749887433619,-151.0,0.00017688,2]
[365762255,1749887433628,-219.046719,0.00017688,2]
[365762257,1749887433638,-221.739038,0.00017688,2]
[365762259,1749887433647,-221.739038,0.00017688,2]
[365762262,1749887433659,-221.739038,0.00017688,2]
[365762263,1749887433668,-221.739038,0.00017688,2]
[365762265,1749887433677,-221.739038,0.00017688,2]
[365762268,1749887433687,-221.739038,0.00017688,2]
[365762269,1749887433696,-221.739038,0.00017688,2]
[365762271,1749887433706,-221.739038,0.00017688,2]
[365762272,1749887433716,-151.0,0.00017688,2]
[365762273,1749887433726,-151.0,0.00017688,2]
[365762274,1749887433735,-151.0,0.00017688,2]
[365762275,1749887433745,-156.312774,0.00017688,2]
[365762276,1749887433755,-151.0,0.0001769,2]
[365762277,1749887433764,-151.0,0.0001769,2]
[365762278,1749887433775,-150.3,0.0001769,2]
[365762279,1749887433784,-150.3,0.0001769,2]
[365762280,1749887433794,-150.3,0.0001769,2]
[365762281,1749887433804,-150.3,0.0001769,2]
[365762282,1749887433813,-150.3,0.0001769,2]
[365762283,1749887433823,-150.3,0.0001769,2]
[365762284,1749887433833,-192.18207133,0.0001769,2]
[365762285,1749887433843,-500.0,0.00017694,2]
[365762286,1749887433852,-613.48755024,0.00017694,2]
[365762287,1749887433862,-180.06563337,0.00017694,2]
[365762288,1749887433871,-388.39688872,0.00017694,2]
[365762289,1749887433880,-500.0,0.00017694,2]
[365762290,1749887433890,-500.0,0.00017694,2]
[365762291,1749887433899,-500.0,0.00017694,2]
[365762292,1749887433908,-500.0,0.00017694,2]
[365762293,1749887433918,-500.0,0.00017694,2]
[365762294,1749887433928,-500.0,0.00017694,2]
[365762295,1749887433937,-500.0,0.00017694,2]
[365762296,1749887433946,-500.0,0.00017694,2]
[365762297,1749887433956,-600.0,0.00017694,2]
[365762298,1749887433965,-450.0,0.00017694,2]
[365762299,1749887433975,-500.0,0.00017694,2]
[365762300,1749887433984,-171.17856637,0.00017694,2]
[365762301,1749887433994,-392769.79867469,0.00017695,2]
[365762302,1749887434007,-2737.28378383,0.00017695,2]
[365762304,1749887437694,-887.452,0.00017637,2]
[365762305,1749887437705,-69.24807194,0.00017695,2]
[365762306,1749887437716,-747.72575256,0.00017695,2]
[365762312,1749887438205,6400.26703949,0.00024,120]
[365762313,1749887438218,-947.36912179,0.00017695,2]
[365762314,1749887438230,-833.82896356,0.00017695,2]
[365762315,1749887439540,-764.745945,0.00017695,2]
[365762316,1749887439667,-525.55,0.00017695,2]
[365762317,1749887439874,-913.76378646,0.00017695,2]
[365762318,1749887439886,-7230.14636129,0.00017695,2]
[365762321,1749887442512,-480.78193404,0.00017695,2]
[365762322,1749887442640,-653.14153045,0.00017695,2]
[365762327,1749887445507,-5720.09790221,0.00017695,2]
[365762328,1749887445535,-44112.70403636,0.00017695,2]
[365762329,1749887445547,-619.76020313,0.00017695,2]
[365762336,1749887455532,154.12,0.00013699,2]
[365762348,1749887639296,1000.0,0.00024658,120]
[365762350,1749887663761,3822.27,0.000161,2]
[365762352,1749887880422,681.70283343,0.0002,30]
[365762363,1749888290335,480.75,0.00014295,2]
[365762370,1749888422873,154.12,0.00013699,2]
[365762381,1749888455509,150.0,0.000161,2]
[365762382,1749888491942,200.0,0.00015287,2]
[365762392,1749888563247,150.0,1e-08,2]
[365762399,1749888631942,-460.29,0.00016129,2]
[365762400,1749888631952,-163.59,0.00016182,2]
[365762401,1749888631961,-300.0,0.00016191,2]
[365762402,1749888631970,-152.72,0.00016191,2]
[365762403,1749888631982,-147.28,0.00016191,2]
[365762404,1749888631991,-534.88950726,0.00016191,2]
[365762405,1749888632002,-665.11049274,0.00016191,2]
[365762407,1749888632012,-35564.51,0.00016192,2]
[365762408,1749888632022,-169.6209653,0.00016287,2]
[365762410,1749888632031,-1000.0,0.00016304,2]
[365762412,1749888632040,-269.8,0.00016465,2]
[365762414,1749888632049,-480.75,0.00016558,2]
[365762416,1749888632058,-163.22,0.00016587,2]
[365762418,1749888632068,-200.0,0.00016602,3]
[365762420,1749888632077,-163.22,0.00016615,2]
[365762422,1749888632086,-163.22,0.00016642,2]
[365762424,1749888632095,-178.39,0.00016648,2]
[365762426,1749888632105,-163.22,0.0001667,2]
[365762428,1749888632114,-301.77,0.00016724,2]
[365762430,1749888632123,-305.95,0.00016724,2]
[365762432,1749888632132,-304.11,0.00016724,2]
[365762434,1749888632142,-300.33,0.00016724,2]
[365762436,1749888632151,-302.95,0.00016724,2]
[365762438,1749888632161,-304.69,0.00016724,2]
[365762440,1749888632170,-300.66,0.00016724,2]
[365762442,1749888632179,-884.42,0.00016724,2]
[365762444,1749888632189,-302.65,0.00016761,2]
[365762446,1749888632198,-302.46,0.00016761,2]
[365762448,1749888632207,-444.59,0.00016769,2]
[365762450,1749888632216,-303.81,0.00016783,2]
[365762452,1749888632225,-207.4,0.00016811,2]
[365762454,1749888632234,-500.0,0.00016848,2]
[365762456,1749888632244,-108.40343615,0.00016848,2]
[365762459,1749888632256,-446.10456385,0.00016848,2]
[365762462,1749888632266,-167.62,0.00016914,2]
[365762465,1749888632276,-151.0,0.0001699,2]
[365762467,1749888632285,-2651.37538491,0.00017,2]
[365762471,1749888632297,-330.4302491,0.00017,2]
[365762726,1749888637881,-1140.550005,0.00017,2]
[365762727,1749888637892,-487.71059924,0.00017,2]
[365762728,1749888637927,-316.73,0.00017,2]
[365762898,1749888639680,-2390.24046917,0.00017,2]
[365762901,1749888639690,-1000.0,0.000173,2]
[365762904,1749888639700,-782.432913,0.00017343,2]
[365762906,1749888639710,-1000.0,0.000174,2]
[365762909,1749888639720,-7317.0367072,0.00017486,2]
[365762912,1749888639729,-1000.0,0.000175,2]
[365762914,1749888639738,-156.51420509,0.000175,2]
[365762916,1749888639747,-4649.39203761,0.000175,2]
[365762918,1749888639756,-500.0,0.00017554,2]
[365762920,1749888639766,-200.0,0.00017554,2]
[365762922,1749888639775,-155.0,0.00017576,2]